bitfinex-derivatives/quotes_BTCF0:USTF0_20240917
["timestamp","ask_amount","ask_price","bid_price","bid_amount"]
[1726580056295,0.36,59256.0,59255.0,0.084376]
[1726580056697,0.36,59256.0,59255.0,0.445176]
[1726580056908,0.0039,59271.0,59269.0,0.084355]
[1726580057201,0.6839,59282.0,59278.0,0.084343]
[1726580057202,0.36,59281.0,59278.0,0.084343]
[1726580057402,0.36,59281.0,59280.0,0.0004]
[1726580057599,0.61211722,59281.0,59280.0,0.0004]
[1726580057909,0.3608,59282.0,59281.0,0.084339]
[1726580058109,0.446051,59288.0,59281.0,0.3612]
[1726580058110,0.00092,59288.0,59281.0,0.3612]
[1726580058409,0.7208,59293.0,59287.0,0.44513]
[1726580058623,0.36,59288.0,59287.0,0.3612]
[1726580058798,0.36,59288.0,59287.0,0.3608]
[1726580059508,0.36,59288.0,59281.0,0.0014]
[1726580059509,0.97340087,59288.0,59281.0,0.0014]
[1726580059711,0.3604,59282.0,59281.0,0.0004]
[1726580060099,0.61371284,59282.0,59281.0,0.0004]
[1726580060498,0.61331284,59282.0,59281.0,0.0004]
[1726580060700,0.66251284,59282.0,59281.0,0.0004]
[1726580062109,0.66751284,59282.0,59281.0,0.0004]
[1726580064019,0.75185084,59282.0,59281.0,0.0004]
[1726580064208,0.74985084,59282.0,59281.0,0.0004]
[1726580064402,0.084346,59276.0,59275.0,0.00253014]
[1726580064606,0.805146,59276.0,59275.0,0.00253014]
[1726580064805,1.05843595,59276.0,59275.0,0.00253014]
[1726580065317,2.16455595,59276.0,59275.0,0.00253014]
[1726580065619,2.08020995,59276.0,59262.0,0.01604691]
[1726580065915,2.08020995,59276.0,59259.0,0.37695492]
[1726580065916,0.0004,59267.0,59259.0,0.37695492]
[1726580066317,0.25309314,59267.0,59261.0,0.084367]
[1726580066818,0.33745214,59267.0,59261.0,0.084367]
[1726580067014,0.33745214,59267.0,59247.0,0.0084]
[1726580067217,0.33745214,59267.0,59246.0,0.3608]
[1726580067218,0.36,59252.0,59246.0,0.3608]
[1726580067415,0.0004,59248.0,59247.0,0.084388]
[1726580067615,0.0004,59248.0,59246.0,0.37738208]
[1726580067817,0.0004,59248.0,59246.0,0.3608]
[1726580067818,0.0004,59247.0,59246.0,0.3608]
[1726580068325,0.0004,59247.0,59243.0,0.00253127]
[1726580068616,0.0004,59244.0,59243.0,0.00253127]
[1726580069119,0.25407558,59244.0,59243.0,1.55412427]
[1726580069418,0.0605485,59256.0,59255.0,0.084376]
[1726580069620,0.36,59261.0,59255.0,0.43713841]
[1726580069815,0.36,59261.0,59255.0,0.3612]
[1726580070017,0.36,59261.0,59260.0,0.0004]
[1726580070214,0.4205485,59261.0,59255.0,0.3612]
[1726580070413,0.0605485,59260.0,59255.0,0.3612]
[1726580070616,0.0004,59256.0,59255.0,0.37756033]
[1726580071018,0.0004,59256.0,59255.0,0.3612]
[1726580071321,0.0609485,59256.0,59255.0,0.0004]
[1726580071510,0.4209485,59256.0,59255.0,0.0004]
[1726580071711,0.4209485,59256.0,59243.0,0.00253127]
[1726580071712,0.50628,59255.0,59243.0,0.00253127]
[1726580071908,0.444792,59244.0,59243.0,0.00253127]
[1726580072119,0.5053405,59244.0,59243.0,0.00253127]
[1726580072323,0.57461475,59244.0,59243.0,0.00253127]
[1726580072625,0.51406625,59244.0,59243.0,0.00253127]
[1726580072824,0.444792,59244.0,59243.0,0.00253127]
[1726580073218,0.69896968,59244.0,59243.0,0.00253127]
[1726580073419,0.084401,59238.0,59236.0,0.3608]
[1726580073624,0.7212,59237.0,59225.0,0.0025324]
[1726580073918,0.0004,59226.0,59225.0,0.0869514]
[1726580074116,0.36,59231.0,59225.0,0.0869514]
[1726580074324,0.3608,59230.0,59226.0,0.084417]
[1726580074517,0.36,59231.0,59226.0,0.084417]
[1726580074730,0.36,59231.0,59230.0,0.0004]
[1726580074929,0.36,59231.0,59227.0,0.084416]
[1726580075126,0.36,59231.0,59229.0,0.084412]
[1726580075436,0.3608,59232.0,59225.0,0.0025324]
[1726580075619,0.36,59231.0,59227.0,0.084415]
[1726580075820,0.361,59231.0,59227.0,0.084415]
[1726580076024,0.361,59231.0,59226.0,0.001]
[1726580076025,0.361,59231.0,59230.0,0.084412]
[1726580076340,0.001,59231.0,59230.0,0.084412]
[1726580076814,0.7208,59231.0,59225.0,0.0025324]
[1726580077019,0.084412,59230.0,59229.0,0.001]
[1726580077424,0.444412,59230.0,59229.0,0.001]
[1726580078027,0.084417,59227.0,59225.0,0.0025324]
[1726580078331,0.3612,59226.0,59225.0,0.0025324]
[1726580078515,0.3612,59226.0,59211.0,0.084439]
[1726580078718,0.3612,59226.0,59213.0,0.37699183]
[1726580078719,0.0004,59214.0,59213.0,0.37699183]
[1726580078917,0.0004,59214.0,59213.0,0.46142783]
[1726580079127,0.3604,59214.0,59213.0,0.37699183]
[1726580079317,0.3604,59214.0,59213.0,0.22739183]
[1726580079518,0.97353105,59214.0,59200.0,0.084455]
[1726580079723,0.0004,59201.0,59200.0,0.084455]
[1726580080025,0.0004,59201.0,59197.0,0.00253354]
[1726580080227,0.0004,59198.0,59197.0,0.00253354]
[1726580080425,0.36176001,59214.0,59205.0,0.084448]
[1726580080426,0.3608,59206.0,59205.0,0.084448]
[1726580080625,0.3608,59207.0,59205.0,0.0004]
[1726580080828,0.36176001,59214.0,59206.0,0.084846]
[1726580080829,0.25229943,59213.0,59206.0,0.084846]
[1726580081122,0.25229943,59213.0,59205.0,0.0004]
[1726580081123,0.3608,59214.0,59213.0,0.084436]
[1726580081531,0.3618,59214.0,59213.0,0.084836]
[1726580082133,0.3608,59214.0,59213.0,0.0004]
[1726580082837,0.3618,59214.0,59213.0,0.0004]
[1726580083131,0.69984577,59214.0,59213.0,0.0004]
[1726580083320,0.69884577,59214.0,59213.0,0.0004]
[1726580083928,0.61441077,59214.0,59213.0,0.0004]
[1726580085337,0.3608,59214.0,59213.0,0.0004]
[1726580086736,0.445235,59214.0,59213.0,0.0004]
[1726580088126,0.3608,59214.0,59213.0,0.0004]
[1726580088328,0.445235,59214.0,59213.0,0.0004]
[1726580088527,0.52967,59214.0,59213.0,0.0004]
[1726580088730,0.084446,59206.0,59205.0,0.0004]
[1726580089038,0.805246,59206.0,59205.0,0.0004]
[1726580089733,0.805246,59206.0,59197.0,0.01616332]
[1726580089734,0.084449,59204.0,59197.0,0.01616332]
[1726580090040,0.0004,59198.0,59195.0,0.084461]
[1726580090229,0.0004,59198.0,59191.0,0.3608]
[1726580090230,0.0004,59196.0,59191.0,0.46166951]
[1726580090428,0.0004,59192.0,59191.0,0.46166951]
[1726580090736,0.36,59193.0,59192.0,0.084466]
[1726580090936,0.36,59193.0,59192.0,0.084866]
[1726580091237,0.0004,59196.0,59192.0,0.084866]
[1726580091435,0.0004,59196.0,59195.0,0.0004]
[1726580091937,0.3604,59196.0,59195.0,0.0004]
[1726580092240,0.084466,59192.0,59191.0,0.01836251]
[1726580092433,0.084474,59187.0,59180.0,0.3608]
[1726580092627,0.3612,59192.0,59180.0,0.3608]
[1726580092628,0.0004,59181.0,59180.0,0.3608]
[1726580092840,0.36,59191.0,59180.0,0.37749376]
[1726580093144,0.0004,59192.0,59190.0,0.0004]
[1726580093338,0.0004,59192.0,59191.0,0.084868]
[1726580093640,0.0004,59192.0,59191.0,0.084468]
[1726580094132,0.3604,59192.0,59187.0,0.3608]
[1726580094334,0.0004,59188.0,59187.0,0.3608]
[1726580094538,0.0004,59188.0,59187.0,0.084473]
[1726580094739,0.0004,59188.0,59183.0,0.084478]
[1726580094937,0.0004,59188.0,59180.0,0.3608]
[1726580094938,0.36,59181.0,59180.0,0.3608]
[1726580095235,0.36,59181.0,59173.0,0.40968]
[1726580095236,0.084492,59174.0,59173.0,0.40968]
[1726580095436,0.444892,59174.0,59173.0,0.3608]
[1726580095640,0.444892,59174.0,59173.0,0.01651422]
[1726580095948,0.084499,59169.0,59167.0,0.3608]
[1726580096135,0.084494,59173.0,59167.0,0.3608]
[1726580096338,0.36,59169.0,59168.0,0.084499]
[1726580097031,0.36,59169.0,59167.0,0.01824148]
[1726580097234,0.001,59169.0,59168.0,0.4453]
[1726580098239,0.00962021,59169.0,59168.0,0.4453]
[1726580098433,0.36962021,59169.0,59168.0,0.4453]
[1726580099233,0.00962021,59169.0,59168.0,0.4453]
[1726580099446,0.446559,59184.0,59168.0,1.55234]
[1726580099447,0.36208,59184.0,59168.0,1.55234]
[1726580099639,0.36208,59184.0,59183.0,0.084879]
[1726580099640,0.0004,59184.0,59183.0,0.084879]
[1726580100143,0.09351259,59184.0,59183.0,0.0004]
[1726580100444,0.084878,59184.0,59183.0,0.0004]
[1726580100642,0.169356,59184.0,59183.0,0.0004]
[1726580101646,0.084878,59184.0,59183.0,0.0004]
[1726580101846,0.0004,59184.0,59183.0,0.084879]
[1726580102147,0.0004,59192.0,59183.0,0.084879]
[1726580102148,0.0004,59192.0,59191.0,0.084468]
[1726580103855,0.3614,59192.0,59191.0,0.094468]
[1726580104346,0.0014,59192.0,59191.0,0.094468]
[1726580104552,0.0039,59209.0,59205.0,0.084447]
[1726580104741,0.36,59213.0,59205.0,0.084447]
[1726580104947,0.084433,59216.0,59205.0,0.084447]
[1726580104948,0.36,59208.0,59205.0,0.084447]
[1726580105247,0.36,59208.0,59198.0,0.00253384]
[1726580105445,0.085256,59199.0,59198.0,0.00253384]
[1726580105646,0.084451,59203.0,59202.0,0.084452]
[1726580105946,0.36,59208.0,59202.0,0.3608]
[1726580106371,0.36,59208.0,59207.0,0.084445]
[1726580106552,0.36,59208.0,59202.0,0.3608]
[1726580106553,0.36,59213.0,59204.0,0.084448]
[1726580106854,0.084432,59216.0,59204.0,0.084448]
[1726580106855,0.0008,59205.0,59204.0,0.084449]
[1726580108359,0.0008,59205.0,59204.0,1.191169]
[1726580108555,0.0008,59205.0,59204.0,1.20776122]
[1726580108758,0.0008,59205.0,59204.0,0.10104122]
[1726580109258,0.0008,59205.0,59202.0,0.3678]
[1726580109259,0.08445,59203.0,59202.0,0.3678]
[1726580109555,0.0008,59203.0,59202.0,0.46150175]
[1726580110255,0.0008,59203.0,59202.0,0.37704975]
[1726580110561,0.084456,59199.0,59198.0,0.00333384]
[1726580110760,0.085256,59199.0,59198.0,0.00333384]
[1726580111566,0.085256,59199.0,59198.0,0.08779184]
[1726580111954,0.315256,59199.0,59198.0,0.08779184]
[1726580112154,0.2308,59199.0,59198.0,0.08779184]
[1726580112451,0.3231,59222.0,59199.0,0.084456]
[1726580112651,0.0039,59223.0,59222.0,0.084423]
[1726580112856,0.23,59235.0,59222.0,0.084423]
[1726580112857,0.3231,59238.0,59222.0,0.5908]
[1726580113159,0.3253,59241.0,59230.0,0.3608]
[1726580113160,0.23,59236.0,59230.0,0.3608]
[1726580113360,0.31441,59232.0,59226.0,0.3608]
[1726580113661,0.0008,59227.0,59219.0,0.00253297]
[1726580113956,0.3608,59229.0,59211.0,0.3608]
[1726580113957,0.0008,59220.0,59211.0,0.3608]
[1726580114156,0.0008,59220.0,59212.0,0.084437]
[1726580114157,0.23,59216.0,59212.0,0.084437]
[1726580114761,0.23,59216.0,59211.0,0.3608]
[1726580114762,0.23,59226.0,59211.0,0.3608]
[1726580115067,0.3608,59232.0,59223.0,0.3608]
[1726580115261,0.23,59229.0,59223.0,0.3608]
[1726580116051,0.23,59229.0,59227.0,0.084416]
[1726580116953,0.23,59229.0,59228.0,0.084415]
[1726580117359,0.23,59229.0,59223.0,0.3608]
[1726580117559,0.23,59229.0,59227.0,0.084416]
[1726580117863,0.23,59229.0,59223.0,0.3608]
[1726580118058,0.3608,59232.0,59226.0,0.084417]
[1726580118258,0.084413,59230.0,59226.0,0.084417]
[1726580118464,0.003,59229.0,59223.0,0.345217]
[1726580118765,0.0008,59224.0,59223.0,0.345217]
[1726580118963,0.0008,59224.0,59223.0,0.790439]
[1726580120057,0.0008,59224.0,59223.0,0.790839]
[1726580120971,0.0008,59224.0,59223.0,0.795839]
[1726580121170,0.0008,59224.0,59223.0,1.986821]
[1726580121467,0.0008,59224.0,59223.0,1.902399]
[1726580121660,0.0008,59224.0,59223.0,0.937599]
[1726580121972,0.0008,59224.0,59223.0,0.431039]
[1726580122158,0.0008,59224.0,59223.0,0.430039]
[1726580122555,0.085221,59224.0,59223.0,0.345617]
[1726580122759,0.3616,59224.0,59218.0,0.00253299]
[1726580122966,0.084828,59219.0,59218.0,0.08695899]
[1726580123169,0.445628,59219.0,59218.0,0.00253299]
[1726580123357,0.084442,59209.0,59207.0,0.3608]
[1726580123558,0.084442,59209.0,59202.0,0.3608]
[1726580123559,0.805642,59209.0,59202.0,0.3608]
[1726580123769,0.08445,59203.0,59202.0,0.3608]
[1726580123964,0.44445,59203.0,59202.0,0.3608]
[1726580124269,0.44445,59203.0,59187.0,0.00253432]
[1726580124270,0.591212,59202.0,59187.0,0.00253432]
[1726580124569,0.591212,59202.0,59180.0,0.084483]
[1726580124570,0.3604,59188.0,59180.0,0.084483]
[1726580124769,0.0004,59181.0,59177.0,0.00253476]
[1726580124969,0.0004,59178.0,59177.0,0.00253476]
[1726580125162,0.3604,59178.0,59177.0,0.00253476]
[1726580128674,0.06059105,59222.0,59219.0,0.0004]
[1726580128891,0.0459,59223.0,59221.0,0.0004]
[1726580129064,0.0459,59223.0,59219.0,0.084827]
[1726580129065,0.0459,59223.0,59222.0,0.0004]
[1726580129265,0.490323,59223.0,59219.0,0.0004]
[1726580129462,0.0004,59220.0,59219.0,0.0004]
[1726580129863,0.0004,59220.0,59219.0,0.3612]
[1726580131279,0.0014,59220.0,59219.0,0.3722]
[1726580131576,0.0014,59220.0,59219.0,0.0114]
[1726580131766,0.0004,59220.0,59219.0,0.0004]
[1726580131965,0.084826,59220.0,59219.0,0.0004]
[1726580132169,0.445626,59220.0,59219.0,0.0004]
[1726580132576,0.084433,59215.0,59207.0,0.445245]
[1726580132779,0.3608,59213.0,59207.0,0.445245]
[1726580133073,0.0004,59213.0,59205.0,0.3608]
[1726580133276,0.0004,59213.0,59212.0,0.084838]
[1726580133881,0.0004,59213.0,59212.0,0.084438]
[1726580134774,0.06799379,59213.0,59212.0,0.001]
[1726580135078,0.06799379,59213.0,59212.0,0.085438]
[1726580135279,0.13732839,59213.0,59210.0,0.31362217]
[1726580135471,0.13732839,59213.0,59210.0,0.08444]
[1726580135472,0.3604,59211.0,59210.0,0.08444]
[1726580135673,0.49032839,59211.0,59210.0,0.08444]
[1726580135970,0.4297346,59211.0,59207.0,0.00253319]
[1726580136179,0.0693346,59210.0,59209.0,0.084442]
[1726580137077,0.0693346,59215.0,59214.0,0.084435]
[1726580137274,0.0693346,59215.0,59214.0,0.084835]
[1726580137676,0.1537676,59215.0,59214.0,0.0004]
[1726580137980,0.2382006,59215.0,59214.0,0.00036]
[1726580138178,0.31627302,59215.0,59214.0,0.00036]
[1726580138374,0.168886,59208.0,59207.0,0.00253319]
[1726580138688,0.76911446,59208.0,59207.0,0.00253319]
[1726580139185,0.59305002,59208.0,59207.0,0.00253319]
[1726580139485,0.59305002,59208.0,59194.0,0.3608]
[1726580139486,0.36,59197.0,59196.0,0.08446]
[1726580139674,0.0697346,59197.0,59196.0,0.08446]
[1726580140685,0.7905346,59197.0,59196.0,0.08446]
[1726580140870,0.7905346,59197.0,59191.0,0.00253354]
[1726580141071,0.7212,59192.0,59191.0,0.08700154]
[1726580141277,0.7212,59192.0,59191.0,0.00253354]
[1726580141278,0.5142006,59192.0,59191.0,0.00253354]
[1726580141578,0.805666,59192.0,59191.0,0.00253354]
[1726580142077,0.675666,59192.0,59191.0,0.00253354]
[1726580143673,0.675666,59192.0,59191.0,0.00453354]
[1726580145185,0.675666,59192.0,59191.0,0.08900154]
[1726580145775,0.675666,59192.0,59191.0,0.00453354]
[1726580147078,0.675666,59192.0,59191.0,0.08900154]
[1726580147286,0.675666,59192.0,59191.0,0.00453354]
[1726580147873,0.675666,59192.0,59191.0,0.08900154]
[1726580148082,0.675666,59192.0,59191.0,0.00453354]
[1726580148587,0.675666,59192.0,59191.0,0.08900154]
[1726580149185,0.675666,59192.0,59191.0,0.00453354]
[1726580149385,0.084479,59183.0,59181.0,0.00232]
[1726580149595,0.398958,59183.0,59176.0,0.36316]
[1726580149883,0.398958,59183.0,59173.0,0.00253492]
[1726580149884,0.084492,59174.0,59173.0,0.00253492]
[1726580150394,0.530584,59174.0,59173.0,0.00253492]
[1726580150582,0.446092,59174.0,59173.0,0.00253492]
[1726580150784,0.446092,59174.0,59163.0,0.3608]
[1726580150988,0.2308,59164.0,59163.0,0.3608]
[1726580151290,0.2308,59164.0,59163.0,0.46173976]
[1726580151684,0.2308,59164.0,59163.0,0.084508]
[1726580151883,0.08451,59161.0,59160.0,0.0025355]
[1726580152189,0.0008,59161.0,59160.0,0.0025355]
[1726580152586,0.08531,59161.0,59160.0,0.0025355]
[1726580152894,0.08531,59161.0,59160.0,0.0870475]
[1726580153082,0.0008,59161.0,59160.0,0.0870475]
[1726580153888,0.0008,59161.0,59150.0,0.084526]
[1726580153889,0.084512,59160.0,59149.0,0.00253596]
[1726580154089,0.5916,59152.0,59143.0,0.3608]
[1726580154283,0.5916,59152.0,59133.0,0.08455]
[1726580154284,0.084541,59140.0,59133.0,0.08455]
[1726580154483,0.3608,59144.0,59137.0,0.23]
[1726580154678,0.3608,59147.0,59142.0,0.23]
[1726580154992,0.3468,59147.0,59146.0,0.084532]
[1726580155592,0.3468,59147.0,59146.0,0.591732]
[1726580155890,0.3468,59147.0,59146.0,0.084532]
[1726580156992,0.0008,59152.0,59151.0,0.084525]
[1726580157190,0.3616,59152.0,59151.0,0.084525]
[1726580157694,0.3616,59152.0,59148.0,0.0025359]
[1726580157894,0.0008,59149.0,59148.0,0.0870649]
[1726580158300,0.0008,59149.0,59148.0,0.10314692]
[1726580158484,0.0008,59149.0,59148.0,0.10061102]
[1726580158690,0.0008,59149.0,59148.0,0.10314692]
[1726580158883,0.0008,59149.0,59148.0,1.44034692]
[1726580159193,0.0084,59169.0,59165.0,0.084505]
[1726580159393,0.3608,59170.0,59169.0,0.084499]
[1726580159988,0.3608,59170.0,59169.0,0.591499]
[1726580160188,0.0482,59176.0,59169.0,0.507]
[1726580160384,0.3608,59185.0,59174.0,0.23]
[1726580160599,0.3608,59185.0,59176.0,0.084489]
[1726580160798,0.3608,59186.0,59176.0,0.6]
[1726580160989,0.445266,59193.0,59190.0,0.084469]
[1726580161188,0.3608,59193.0,59185.0,0.23]
[1726580161486,0.3608,59193.0,59192.0,0.084466]
[1726580161682,0.3608,59193.0,59187.0,0.084473]
[1726580161882,0.0008,59188.0,59187.0,0.084473]
[1726580162093,0.0008,59188.0,59187.0,0.914473]
[1726580162297,0.0008,59188.0,59187.0,1.421353]
[1726580162493,0.0008,59188.0,59187.0,0.10100391]
[1726580162794,0.0008,59188.0,59187.0,0.83788391]
[1726580163396,0.0008,59188.0,59187.0,0.10100391]
[1726580164001,0.446072,59188.0,59184.0,0.00253419]
[1726580164295,0.446072,59188.0,59171.0,0.10113515]
[1726580164296,0.084487,59178.0,59171.0,0.10113515]
[1726580164496,0.0008,59172.0,59168.0,0.00253446]
[1726580164701,0.0008,59169.0,59168.0,0.08703446]
[1726580164907,0.23,59176.0,59170.0,0.084497]
[1726580165196,0.3608,59177.0,59168.0,0.00253446]
[1726580165394,0.3608,59177.0,59171.0,0.001]
[1726580165793,0.3608,59177.0,59176.0,0.084489]
[1726580165989,0.3616,59185.0,59177.0,0.084488]
[1726580166200,0.3616,59185.0,59184.0,0.084478]
[1726580166391,0.3616,59185.0,59181.0,0.00253424]
[1726580166598,0.3616,59185.0,59183.0,0.084479]
[1726580166793,0.3616,59185.0,59184.0,0.084478]
[1726580167093,0.0008,59185.0,59184.0,0.168956]
[1726580167297,0.0008,59185.0,59184.0,1.191358]
[1726580167488,0.3608,59195.0,59194.0,0.084463]
[1726580167691,0.3608,59202.0,59201.0,0.084453]
[1726580168007,0.0475,59209.0,59208.0,0.084443]
[1726580168303,0.045,59214.0,59213.0,0.084436]
[1726580168491,0.3608,59217.0,59216.0,0.084432]
[1726580168687,0.3608,59217.0,59216.0,0.084832]
[1726580168993,0.3608,59217.0,59213.0,0.0004]
[1726580169190,0.084835,59214.0,59213.0,0.0004]
[1726580169698,0.0004,59214.0,59213.0,0.084836]
[1726580170090,0.3608,59224.0,59213.0,0.3612]
[1726580170293,0.3608,59224.0,59223.0,0.0004]
[1726580170600,0.445221,59224.0,59223.0,0.0004]
[1726580171000,0.3608,59224.0,59223.0,0.0004]
[1726580171190,0.0475,59225.0,59223.0,0.3612]
[1726580171394,0.0475,59225.0,59224.0,0.084421]
[1726580171693,0.0475,59225.0,59224.0,0.0004]
[1726580172097,0.131919,59225.0,59224.0,0.0004]
[1726580172297,0.492719,59225.0,59224.0,0.0004]
[1726580173804,0.084427,59220.0,59207.0,0.3608]
[1726580173991,0.3608,59216.0,59212.0,0.084438]
[1726580174998,0.3608,59216.0,59207.0,0.3608]
[1726580175202,0.3608,59216.0,59215.0,0.084433]
[1726580175904,0.3608,59216.0,59212.0,0.00253301]
[1726580176104,0.3608,59216.0,59202.0,0.36333367]
[1726580176105,0.084446,59206.0,59202.0,0.36333367]
[1726580176413,0.3612,59203.0,59202.0,0.01818294]
[1726580176701,0.44525,59203.0,59202.0,0.00253367]
[1726580176892,0.3608,59203.0,59195.0,0.084462]
[1726580177099,0.3612,59196.0,59187.0,0.0485]
[1726580177298,0.3612,59196.0,59186.0,0.3608]
[1726580177299,0.0004,59192.0,59186.0,0.3608]
[1726580177498,0.806461,59196.0,59191.0,0.01866848]
[1726580177698,1.16646,59196.0,59195.0,0.0004]
[1726580177893,1.25092,59196.0,59195.0,0.0004]
[1726580178208,0.084466,59192.0,59191.0,0.00253401]
[1726580178401,0.087866,59192.0,59191.0,0.00253401]
[1726580178804,0.0034,59192.0,59191.0,0.08700201]
[1726580179010,0.0004,59192.0,59191.0,0.08700201]
[1726580179310,0.0004,59192.0,59191.0,0.44700201]
[1726580179507,0.0004,59192.0,59191.0,1.63831001]
[1726580179700,1e-06,59196.0,59195.0,0.168924]
[1726580179906,1e-06,59196.0,59195.0,0.853786]
[1726580180208,1e-06,59196.0,59195.0,1.276124]
[1726580180909,0.084443,59208.0,59204.0,0.084448]
[1726580181206,0.084443,59208.0,59195.0,0.5072]
[1726580181207,0.084437,59213.0,59207.0,0.0004]
[1726580181507,0.3608,59215.0,59212.0,0.0004]
[1726580181704,0.3608,59215.0,59214.0,0.084835]
[1726580182710,0.454233,59215.0,59214.0,0.0004]
[1726580183006,0.454233,59215.0,59214.0,0.084835]
[1726580183604,0.3698,59215.0,59214.0,0.084835]
[1726580185110,0.3698,59215.0,59214.0,0.0014]
[1726580185111,0.454233,59215.0,59214.0,0.0014]
[1726580185410,0.3698,59215.0,59214.0,0.085835]
[1726580185614,0.3708,59215.0,59214.0,0.085835]
[1726580186811,0.455233,59215.0,59214.0,0.0014]
[1726580187112,0.455233,59215.0,59199.0,0.36316]
[1726580187113,0.084443,59208.0,59199.0,0.3608]
[1726580187316,0.445243,59208.0,59207.0,0.084444]
[1726580187614,0.445243,59208.0,59203.0,0.00253363]
[1726580187615,0.084449,59204.0,59203.0,0.00253363]
[1726580187800,0.084849,59204.0,59203.0,0.00253363]
[1726580188105,0.529298,59204.0,59203.0,0.00253363]
[1726580188417,0.51417491,59204.0,59199.0,0.084456]
[1726580188600,0.3612,59200.0,59196.0,0.08446]
[1726580188799,0.0004,59197.0,59196.0,0.08446]
[1726580189101,0.06972591,59197.0,59196.0,0.08446]
[1726580189411,0.3612,59200.0,59199.0,0.084456]
[1726580189607,0.3612,59200.0,59199.0,0.084856]
[1726580190302,0.445655,59200.0,59199.0,0.084856]
[1726580191314,0.06932591,59200.0,59199.0,1.46756]
[1726580191522,0.3608,59208.0,59207.0,0.084445]
[1726580191818,0.3608,59215.0,59207.0,0.084445]
[1726580191819,0.3608,59215.0,59214.0,0.084435]
[1726580192004,0.3608,59215.0,59214.0,0.084835]
[1726580192204,0.3721223,59215.0,59214.0,0.084835]
[1726580192601,0.3721223,59215.0,59214.0,0.084435]
[1726580192805,0.3608,59215.0,59214.0,0.084435]
[1726580193016,0.3608,59215.0,59214.0,0.16987]
[1726580193017,0.3698,59215.0,59214.0,0.16987]
[1726580193212,0.3698,59215.0,59214.0,0.085435]
[1726580193716,0.3698,59215.0,59214.0,0.10155894]
[1726580198909,0.454233,59215.0,59214.0,0.10155894]
[1726580199116,0.3698,59215.0,59214.0,0.10155894]
[1726580200527,0.4655553,59215.0,59214.0,0.01712394]
[1726580200715,0.4655553,59215.0,59214.0,0.10155894]
[1726580200908,0.3811223,59215.0,59214.0,0.10155894]
[1726580201111,0.3811223,59215.0,59214.0,0.41599394]
[1726580201925,0.4655553,59215.0,59214.0,0.10155894]
[1726580202724,0.4565553,59215.0,59214.0,0.10055894]
[1726580203221,0.4565553,59215.0,59211.0,0.084438]
[1726580203222,0.08444,59212.0,59211.0,0.084438]
[1726580203619,0.0961623,59212.0,59211.0,0.084438]
[1726580203818,0.0117223,59212.0,59211.0,0.084438]
[1726580204324,0.0117223,59212.0,59211.0,0.253316]
[1726580204325,0.0004,59212.0,59211.0,0.253316]
[1726580204516,0.0004,59212.0,59211.0,0.844395]
[1726580204821,0.0039,59229.0,59228.0,0.084415]
[1726580205122,0.06057686,59233.0,59232.0,0.084409]
[1726580205429,0.3647,59251.0,59244.0,0.00253156]
[1726580205611,0.3608,59257.0,59254.0,0.084378]
[1726580206128,0.0113223,59255.0,59250.0,0.0004]
[1726580206310,0.0113223,59252.0,59250.0,0.0004]
[1726580206515,0.0004,59251.0,59250.0,0.0004]
[1726580206818,0.3725223,59251.0,59250.0,0.0004]
[1726580207122,0.4569043,59251.0,59250.0,0.01646653]
[1726580207527,0.6869043,59251.0,59250.0,0.01646653]
[1726580207716,0.6869043,59251.0,59250.0,0.0004]
[1726580208233,0.89300442,59251.0,59234.0,0.084406]
[1726580208412,0.3612,59236.0,59235.0,0.084405]
[1726580209918,0.3662,59236.0,59235.0,0.085405]
[1726580210321,0.3662,59236.0,59235.0,0.001]
[1726580210522,0.680603,59236.0,59235.0,0.001]
[1726580210829,0.084421,59224.0,59223.0,0.00253279]
[1726580211133,0.675621,59224.0,59223.0,0.00253279]
[1726580211319,0.445621,59224.0,59223.0,0.00253279]
[1726580211520,0.3612,59224.0,59223.0,0.00253279]
[1726580211719,0.0004,59224.0,59223.0,0.08695479]
[1726580212234,0.001,59224.0,59223.0,1.28593679]
[1726580212427,0.3608,59234.0,59233.0,0.084408]
[1726580212626,0.3608,59234.0,59233.0,0.084808]
[1726580213328,0.3608,59234.0,59233.0,0.0004]
[1726580213723,0.084421,59224.0,59223.0,0.01053263]
[1726580213924,0.445621,59224.0,59223.0,0.01053263]
[1726580214123,0.445621,59224.0,59223.0,0.02594028]
[1726580214318,0.445621,59224.0,59223.0,0.01053263]
[1726580214932,0.445621,59224.0,59223.0,0.00253263]
[1726580215435,0.445621,59224.0,59223.0,0.00227937]
[1726580215737,0.446621,59224.0,59223.0,0.01027937]
[1726580216328,0.446621,59224.0,59223.0,0.008]
[1726580218030,0.446621,59224.0,59223.0,0.092422]
[1726580218429,0.446621,59224.0,59223.0,0.008]
[1726580219133,0.3622,59224.0,59223.0,0.092422]
[1726580219521,0.0014,59224.0,59223.0,0.176844]
[1726580220131,0.3608,59234.0,59233.0,0.084408]
[1726580220534,0.3608,59234.0,59233.0,0.084808]
[1726580220932,0.445206,59234.0,59233.0,0.084808]
[1726580221144,0.3608,59234.0,59233.0,0.084808]
[1726580221324,0.3608,59244.0,59243.0,0.084393]
[1726580221525,0.3608,59244.0,59243.0,0.084793]
[1726580221740,0.3608,59244.0,59243.0,0.314793]
[1726580222125,0.3608,59251.0,59250.0,0.084383]
[1726580222321,0.3608,59251.0,59250.0,0.084783]
[1726580222527,0.6839,59259.0,59250.0,0.0004]
[1726580222829,0.3608,59259.0,59258.0,0.084772]
[1726580223438,0.3608,59259.0,59258.0,0.10052357]
[1726580223741,0.445161,59266.0,59258.0,0.01615157]
[1726580223931,0.3608,59261.0,59258.0,0.01615157]
[1726580224132,0.3608,59261.0,59260.0,0.314369]